bitfinex-derivatives/quotes_BTCF0:USTF0_20241120
["timestamp","ask_amount","ask_price","bid_price","bid_amount"]
[1732132393680,0.41916175,93895.0,93890.0,0.11916]
[1732132393875,0.0768242,93894.0,93880.0,0.10182919]
[1732132394177,0.07017579,93893.0,93892.0,0.053191]
[1732132394382,0.07682551,93893.0,93892.0,0.053191]
[1732132394562,0.07017579,93893.0,93892.0,0.053191]
[1732132394770,0.01846337,93893.0,93892.0,0.053191]
[1732132395681,0.03002621,93893.0,93892.0,0.053191]
[1732132395875,0.03002621,93893.0,93892.0,0.07380691]
[1732132396770,0.03003102,93893.0,93892.0,0.07380691]
[1732132397377,0.03003102,93893.0,93859.0,0.053209]
[1732132397378,0.03003102,93893.0,93880.0,0.10182919]
[1732132397578,0.3608,93896.0,93881.0,0.11908]
[1732132397579,0.03668065,93892.0,93881.0,0.11908]
[1732132397772,0.03008957,93891.0,93889.0,0.053193]
[1732132397969,0.03008957,93890.0,93889.0,0.053193]
[1732132398274,0.03008957,93890.0,93889.0,1.553193]
[1732132399581,0.01157291,93890.0,93889.0,1.553193]
[1732132400178,0.0332,93891.0,93889.0,1.553193]
[1732132400383,0.01130228,93890.0,93889.0,1.553193]
[1732132400582,0.06449428,93890.0,93889.0,1.5]
[1732132401173,0.06449428,93890.0,93887.0,0.172274]
[1732132401384,0.01130228,93889.0,93887.0,0.172274]
[1732132401577,0.053192,93890.0,93888.0,0.053193]
[1732132401783,0.01135943,93889.0,93888.0,0.053193]
[1732132402373,0.01135943,93889.0,93887.0,0.11908]
[1732132402576,0.053193,93888.0,93887.0,0.11908]
[1732132402882,0.0653,93891.0,93888.0,0.053193]
[1732132403183,0.0653,93891.0,93887.0,0.11908]
[1732132403184,0.053195,93886.0,93883.0,0.053195]
[1732132403383,0.0653,93891.0,93884.0,0.11908]
[1732132404078,0.01138369,93890.0,93884.0,0.11908]
[1732132404276,0.0653,93891.0,93884.0,0.11908]
[1732132404277,0.01138369,93889.0,93884.0,0.11908]
[1732132404477,0.0653,93891.0,93884.0,0.11908]
[1732132404676,0.01137194,93890.0,93889.0,0.053193]
[1732132406278,0.0628,93905.0,93884.0,0.22090919]
[1732132406480,0.08318042,93905.0,93904.0,0.053184]
[1732132406692,0.0628,93905.0,93904.0,0.15501319]
[1732132407183,0.3608,93916.0,93905.0,0.053184]
[1732132407389,0.3608,93906.0,93905.0,0.053184]
[1732132408582,0.3608,93906.0,93905.0,0.11908]
[1732132408780,0.3608,93906.0,93905.0,0.172264]
[1732132413394,0.3608,93906.0,93905.0,0.202664]
[1732132413597,0.00116,93916.0,93915.0,0.053178]
[1732132413780,0.0315,93924.0,93923.0,0.053173]
[1732132413985,0.0315,93924.0,93923.0,0.15500219]
[1732132415190,0.0315,93924.0,93923.0,0.053173]
[1732132424397,0.053175,93921.0,93907.0,0.49332919]
[1732132424602,0.053176,93920.0,93918.0,0.053176]
[1732132424993,0.053176,93920.0,93919.0,0.053176]
[1732132426100,0.0315,93924.0,93914.0,0.10182919]
[1732132426296,0.0315,93924.0,93922.0,0.053174]
[1732132426603,0.053173,93923.0,93922.0,0.053174]
[1732132427488,0.3608,93931.0,93922.0,0.10182919]
[1732132427690,0.3608,93931.0,93930.0,0.15499819]
[1732132427892,0.38165838,93931.0,93930.0,0.15499819]
[1732132428089,0.38165838,93931.0,93923.0,0.10182919]
[1732132428399,0.053172,93926.0,93916.0,0.10182919]
[1732132428601,0.053172,93926.0,93924.0,0.053173]
[1732132429500,0.38281838,93931.0,93924.0,0.053173]
[1732132429804,0.053172,93927.0,93924.0,0.053173]
[1732132430594,0.38281838,93931.0,93924.0,0.053173]
[1732132430796,0.01160612,93930.0,93924.0,0.053173]
[1732132430997,0.01160612,93929.0,93924.0,0.053173]
[1732132431197,0.38281838,93931.0,93916.0,0.10182919]
[1732132431407,0.053172,93926.0,93923.0,0.053173]
[1732132431599,0.38165838,93931.0,93916.0,0.10182919]
[1732132431600,0.38289839,93931.0,93916.0,0.10182919]
[1732132431799,0.053172,93926.0,93923.0,0.053173]
[1732132432094,0.38281838,93931.0,93923.0,0.053173]
[1732132432297,0.053173,93924.0,93923.0,0.053173]
[1732132432494,0.38165838,93931.0,93919.0,0.053176]
[1732132432495,0.053175,93920.0,93919.0,0.053176]
[1732132432694,0.3608,93920.0,93919.0,0.053176]
[1732132433896,0.36196,93931.0,93930.0,0.053169]
[1732132434103,0.3608,93931.0,93930.0,0.15499819]
[1732132435711,0.3608,93931.0,93930.0,0.27383819]
[1732132436326,0.3608,93931.0,93930.0,1.77383819]
[1732132438312,0.413969,93931.0,93930.0,1.672009]
[1732132438717,0.42552438,93931.0,93930.0,0.11884]
[1732132439124,0.37235538,93931.0,93927.0,0.053171]
[1732132439423,0.053172,93926.0,93925.0,0.172012]
[1732132439826,0.06472738,93926.0,93925.0,0.172012]
[1732132440220,0.06472738,93926.0,93925.0,0.053172]
[1732132440925,0.01155538,93926.0,93925.0,0.053172]
[1732132441719,0.05317,93929.0,93923.0,0.22066919]
[1732132441924,0.05317,93929.0,93927.0,0.053171]
[1732132442334,0.01153954,93928.0,93927.0,0.053171]
[1732132444323,0.01153954,93928.0,93923.0,0.27384219]
[1732132444535,0.053172,93925.0,93923.0,0.27384219]
[1732132444718,0.053172,93925.0,93923.0,0.22066919]
[1732132444922,0.0114766,93924.0,93923.0,0.27384219]
[1732132445323,0.053172,93925.0,93924.0,0.053173]
[1732132445522,0.06467574,93925.0,93924.0,0.053173]
[1732132446229,0.06467574,93925.0,93917.0,1.50056]
[1732132446230,0.38407574,93925.0,93917.0,0.00056]
[1732132446434,0.38407574,93925.0,93904.0,0.053184]
[1732132446435,0.053182,93908.0,93904.0,0.053184]
[1732132446633,0.3608,93918.0,93903.0,0.11884]
[1732132446827,0.3608,93908.0,93903.0,0.11884]
[1732132447026,0.3608,93908.0,93907.0,0.053182]
[1732132447229,0.19084162,93926.0,93903.0,0.11884]
[1732132447230,0.3608,93923.0,93905.0,0.053184]
[1732132447428,0.3608,93923.0,93922.0,0.15500319]
[1732132447730,0.005,93939.0,93922.0,0.15500319]
[1732132447731,0.053169,93931.0,93922.0,0.15500319]
[1732132447933,0.053169,93931.0,93930.0,0.053169]
[1732132448124,0.06477058,93931.0,93930.0,0.053169]
[1732132448434,0.01160158,93931.0,93930.0,0.053169]
[1732132449823,0.38195866,93934.0,93923.0,0.0329]
[1732132450026,0.38195866,93934.0,93933.0,0.053168]
[1732132450524,0.05317,93929.0,93927.0,0.053171]
[1732132450731,0.05317,93929.0,93923.0,0.0329]
[1732132450918,0.05317,93929.0,93928.0,0.053171]
[1732132451317,0.05317,93929.0,93923.0,0.0329]
[1732132451318,0.38195866,93934.0,93923.0,0.0329]
[1732132451527,0.053168,93932.0,93924.0,0.053173]
[1732132451733,0.06476752,93931.0,93928.0,0.05317]
[1732132451922,0.01159852,93930.0,93929.0,0.05317]
[1732132452122,0.053171,93928.0,93926.0,0.053171]
[1732132452331,0.38195866,93934.0,93921.0,1.52116073]
[1732132452332,0.01159852,93927.0,93921.0,0.0006]
[1732132452523,0.3608,93925.0,93924.0,0.053173]
[1732132452732,0.3608,93925.0,93924.0,0.15500219]
[1732132453324,0.38315867,93934.0,93933.0,0.053168]
[1732132453325,0.36200001,93934.0,93933.0,0.053168]
[1732132453528,0.3608,93934.0,93933.0,0.053168]
[1732132454827,0.02059511,93938.0,93933.0,0.0313]
[1732132455139,0.51976583,93945.0,93933.0,0.0313]
[1732132455140,0.36196,93945.0,93944.0,0.053161]
[1732132455343,0.3608,93945.0,93944.0,0.15499019]
[1732132455925,0.0649,93954.0,93953.0,0.053156]
[1732132456238,0.118056,93954.0,93953.0,0.053156]
[1732132458238,0.0649,93954.0,93953.0,0.053156]
[1732132459628,0.00116,93955.0,93954.0,0.053156]
[1732132459933,0.03466881,93956.0,93955.0,0.053155]
[1732132462461,0.053157,93952.0,93951.0,0.15498419]
[1732132462638,0.053157,93952.0,93935.0,0.053166]
[1732132462639,0.053161,93944.0,93943.0,1.65555119]
[1732132462843,0.39546881,93956.0,93943.0,1.61852]
[1732132463136,0.03466881,93956.0,93955.0,0.053155]
[1732132465137,0.08782381,93956.0,93955.0,0.053155]
[1732132466042,0.37442188,93956.0,93944.0,0.11852]
[1732132466248,0.053161,93945.0,93944.0,0.11852]
[1732132467930,0.053162,93944.0,93942.0,0.053162]
[1732132468135,0.0329,93947.0,93942.0,0.053162]
[1732132468336,0.053162,93943.0,93942.0,0.053162]
[1732132468642,0.0329,93947.0,93935.0,0.11852]
[1732132468851,0.053161,93946.0,93943.0,0.053162]
[1732132469245,0.053161,93946.0,93935.0,0.11852]
[1732132469246,0.053161,93946.0,93944.0,0.053161]
[1732132469546,0.053161,93946.0,93935.0,0.11852]
[1732132469737,0.053161,93946.0,93945.0,0.053161]
[1732132470343,0.0329,93947.0,93946.0,0.05316]
[1732132470532,0.0329,93947.0,93937.0,0.46262919]
[1732132470533,0.38158894,93948.0,93947.0,0.05316]
[1732132470736,0.38158894,93948.0,93947.0,0.15498919]
[1732132470938,0.38158894,93948.0,93947.0,0.27350919]
[1732132471438,0.3608,93948.0,93947.0,0.27350919]
[1732132472937,0.0311,93960.0,93947.0,0.27350919]
[1732132472938,0.0311,93960.0,93947.0,0.22034919]
[1732132473144,0.0311,93960.0,93955.0,0.053155]
[1732132474236,0.38273952,93957.0,93955.0,0.053155]
[1732132474444,0.38273952,93957.0,93955.0,0.15498419]
[1732132474636,0.36204001,93957.0,93955.0,0.15498419]
[1732132476053,0.00124001,93957.0,93955.0,0.15498419]
[1732132476253,0.0383752,93962.0,93955.0,0.51578419]
[1732132477750,0.07119165,93974.0,93955.0,0.51578419]
[1732132477751,0.03839165,93974.0,93967.0,0.053148]
[1732132477948,0.03839165,93974.0,93967.0,0.73612638]
[1732132478141,0.03839165,93974.0,93973.0,0.053145]
[1732132478337,0.03839165,93974.0,93973.0,0.15497419]
[1732132479345,0.39919165,93974.0,93973.0,0.22030919]
[1732132479555,0.39919165,93974.0,93973.0,0.27345419]
[1732132480261,0.39919165,93974.0,93973.0,1.671625]
[1732132481051,0.02733084,93981.0,93980.0,0.053141]
[1732132481243,0.32529111,93982.0,93981.0,0.15497019]
[1732132481457,0.32397111,93982.0,93981.0,0.47417019]
[1732132481647,0.04112075,93987.0,93986.0,0.053138]
[1732132482752,0.04112075,93987.0,93986.0,1.553138]
[1732132484155,0.04112075,93987.0,93986.0,0.171618]
[1732132484456,0.09425775,93987.0,93986.0,0.171618]
[1732132484652,0.09425775,93987.0,93986.0,0.053138]
[1732132484851,0.05314,93983.0,93982.0,0.05314]
[1732132485058,0.05314,93983.0,93967.0,0.00159583]
[1732132485059,0.053144,93975.0,93974.0,0.10182919]
[1732132485354,0.053144,93975.0,93974.0,0.15497419]
[1732132486054,0.413944,93975.0,93974.0,0.15497419]
[1732132486357,0.413944,93975.0,93974.0,0.10182919]
[1732132486747,0.413944,93975.0,93974.0,0.15497419]
[1732132487660,0.413944,93975.0,93974.0,0.10182919]
[1732132487856,0.3608,93975.0,93967.0,0.00159583]
[1732132488247,0.053148,93968.0,93967.0,0.00159583]
[1732132488453,0.3608,93975.0,93967.0,0.00159583]
[1732132488454,0.3608,93973.0,93967.0,0.00159583]
[1732132488757,0.3608,93973.0,93972.0,0.15497519]
[1732132490165,0.3608,93973.0,93972.0,0.053146]
[1732132491057,0.053147,93969.0,93968.0,0.1182]
[1732132492864,0.053147,93969.0,93967.0,0.02230154]
[1732132493167,0.3608,93973.0,93967.0,0.07544954]
[1732132493168,0.01208757,93968.0,93967.0,0.07544954]
[1732132493362,0.3608,93973.0,93967.0,0.07544954]
[1732132493363,0.3608,93973.0,93967.0,0.17727873]
[1732132493566,0.0001823,93972.0,93971.0,0.053146]
[1732132495676,0.0533283,93972.0,93971.0,0.053146]
[1732132496764,0.0001823,93972.0,93971.0,0.053146]
[1732132497074,0.0533283,93972.0,93971.0,0.053146]
[1732132497455,0.053147,93969.0,93967.0,0.29547873]
[1732132497863,0.053147,93969.0,93967.0,0.24233073]
[1732132498068,0.053147,93969.0,93968.0,0.053148]
[1732132498669,0.053147,93969.0,93967.0,0.24233073]
[1732132498670,0.0317,93971.0,93967.0,0.24233073]
[1732132498869,0.0317,93971.0,93970.0,0.053147]
[1732132499664,0.0001823,93972.0,93967.0,0.24233073]
[1732132499859,0.0001823,93972.0,93971.0,0.053146]
[1732132502776,0.0001823,93972.0,93971.0,0.171346]
[1732132504467,0.0533283,93972.0,93971.0,0.053146]
[1732132505088,0.0533283,93972.0,93967.0,0.11979583]
[1732132505264,0.0533283,93972.0,93967.0,0.17294383]
[1732132505265,0.053148,93968.0,93967.0,0.17294383]
[1732132505469,0.06553492,93968.0,93967.0,0.17294383]
[1732132505676,0.06553492,93968.0,93967.0,0.00159583]
[1732132505871,0.01238692,93968.0,93960.0,0.10182919]
[1732132506072,0.01238692,93967.0,93963.0,0.053151]
[1732132506268,0.01238692,93966.0,93965.0,0.05315]
[1732132506468,0.0001823,93972.0,93965.0,0.05315]
[1732132506770,0.0001823,93972.0,93971.0,0.15497519]
[1732132506964,0.01314543,93972.0,93971.0,0.15497519]
[1732132507174,0.00070221,93972.0,93971.0,0.15497519]
[1732132507573,0.00193913,93981.0,93980.0,0.053141]
[1732132507773,0.00344508,93986.0,93980.0,0.15497019]
[1732132508075,0.00344508,93986.0,93985.0,0.053138]
[1732132508394,0.00344508,93986.0,93985.0,0.171338]
[1732132508676,0.00344508,93986.0,93985.0,1.671338]
[1732132509287,0.36496186,93991.0,93985.0,1.6182]
[1732132509465,0.36496186,93991.0,93990.0,0.15496419]
[1732132512182,0.37754139,93991.0,93990.0,0.15496419]
[1732132512876,0.36496186,93991.0,93990.0,0.15496419]
[1732132515582,0.36496186,93991.0,93990.0,0.27316419]
[1732132515883,0.36496186,93991.0,93990.0,0.15496419]
[1732132516185,0.41809686,93991.0,93990.0,0.27316419]
[1732132516379,0.36496186,93991.0,93990.0,0.27316419]
[1732132516773,0.41809686,93991.0,93990.0,0.053135]
[1732132517584,0.41809686,93991.0,93985.0,1.61876]
[1732132517585,0.37757974,93991.0,93985.0,0.00056]
[1732132517784,0.053138,93985.0,93984.0,0.053138]
[1732132518183,0.3608,93987.0,93980.0,1.5]
[1732132518184,0.053141,93981.0,93980.0,1.50056]
[1732132518479,0.053141,93981.0,93974.0,0.10182919]
[1732132518480,0.053143,93978.0,93977.0,0.053141]
[1732132519285,0.053143,93978.0,93975.0,0.11788]
[1732132519286,0.03,93979.0,93978.0,0.053142]
[1732132520688,0.09580453,93979.0,93978.0,0.053142]
[1732132521480,0.03,93979.0,93969.0,0.053147]
[1732132521681,0.03,93979.0,93959.0,0.10182919]
[1732132521682,0.3608,93970.0,93959.0,0.10182919]
[1732132521879,0.3608,93970.0,93962.0,0.11788]
[1732132522088,0.05315,93965.0,93964.0,0.05474605]
[1732132522271,0.0329,93969.0,93968.0,0.053148]
[1732132522476,0.3608,93970.0,93969.0,0.053147]
[1732132522987,0.3608,93970.0,93969.0,0.171027]
[1732132524077,0.3608,93970.0,93969.0,1.671027]
[1732132524387,0.3608,93970.0,93969.0,1.990267]
[1732132526376,0.00416186,93991.0,93988.0,0.053137]
[1732132526576,0.00416186,93991.0,93990.0,0.053135]
[1732132526987,0.00416186,93991.0,93990.0,1.553135]
[1732132529879,0.00416186,93991.0,93990.0,1.57375558]
[1732132532291,0.00416186,93991.0,93990.0,1.553135]
[1732132533179,0.00416186,93991.0,93990.0,0.053135]
[1732132533180,0.0173496,93991.0,93990.0,0.053135]
[1732132533589,0.0704846,93991.0,93990.0,0.053135]
[1732132533796,0.0704846,93991.0,93985.0,0.10182919]
[1732132533797,0.053138,93986.0,93985.0,0.15496719]
[1732132534279,0.053141,93980.0,93979.0,0.11788]
[1732132534488,0.053142,93978.0,93977.0,0.15497219]
[1732132534880,0.053142,93978.0,93977.0,0.053143]
[1732132535087,0.01329741,93978.0,93965.0,1.5006]
[1732132535287,0.05315,93965.0,93964.0,0.17262605]
[1732132535486,0.3608,93967.0,93966.0,0.053149]
[1732132536396,0.413948,93967.0,93966.0,0.15497819]
[1732132536991,0.3608,93967.0,93966.0,0.15497819]
[1732132537799,0.413942,93978.0,93977.0,0.053143]
[1732132538095,0.37404731,93978.0,93977.0,0.053143]
[1732132539501,0.3608,93978.0,93977.0,0.053143]
[1732132542399,0.3608,93978.0,93977.0,0.0738478]
[1732132547408,0.37374278,93978.0,93977.0,0.0738478]
[1732132547708,0.38668547,93978.0,93977.0,0.0738478]
[1732132548809,0.37374278,93978.0,93977.0,0.0738478]
[1732132549113,0.38653306,93978.0,93977.0,0.0738478]
[1732132550015,0.053148,93970.0,93969.0,0.053147]
[1732132550215,0.37374278,93978.0,93968.0,0.10182919]
[1732132550507,0.053144,93975.0,93974.0,0.053144]
[1732132550813,0.37506278,93978.0,93977.0,0.053143]
[1732132551018,0.37374278,93978.0,93977.0,0.15497219]
[1732132552005,0.3608,93978.0,93977.0,0.15497219]
[1732132552408,0.3608,93978.0,93977.0,1.65497219]
[1732132553201,0.0328,93985.0,93977.0,1.60182919]
[1732132553408,0.0328,93985.0,93979.0,0.053142]
[1732132553713,0.085938,93985.0,93979.0,0.053142]
[1732132553908,0.053139,93984.0,93979.0,0.053142]
[1732132554103,0.0328,93985.0,93979.0,0.053142]
[1732132554104,0.05314,93983.0,93979.0,0.053142]
[1732132554513,0.413936,93989.0,93988.0,0.053137]
[1732132554811,0.42675167,93989.0,93988.0,0.053137]
[1732132555204,0.053142,93978.0,93977.0,1.57363007]
[1732132555409,0.053142,93978.0,93977.0,0.07363007]
[1732132555410,0.413942,93978.0,93977.0,0.07363007]
[1732132556113,0.413942,93978.0,93977.0,0.053143]
[1732132556316,0.3608,93978.0,93977.0,0.053143]
[1732132560810,0.37350353,93978.0,93977.0,0.053143]
[1732132562815,0.3608,93978.0,93977.0,0.053143]
[1732132563127,0.37349023,93978.0,93977.0,0.053143]
[1732132563322,0.42663223,93978.0,93977.0,0.053143]
[1732132564020,0.053144,93975.0,93974.0,0.11752]
[1732132564217,0.053147,93970.0,93969.0,0.00056]
[1732132564421,0.053148,93968.0,93967.0,0.11752]
[1732132564619,0.053148,93967.0,93966.0,0.053149]
[1732132564824,0.06599366,93967.0,93966.0,0.053149]
[1732132565028,0.053148,93967.0,93966.0,0.053149]
[1732132565219,0.3935,93969.0,93968.0,0.053148]
[1732132565420,0.446647,93969.0,93968.0,0.053148]
[1732132565622,0.053153,93959.0,93949.0,0.3608]
[1732132565819,0.053153,93959.0,93945.0,1.5]
[1732132565820,0.05316,93946.0,93945.0,1.5]
[1732132566023,0.41396,93946.0,93945.0,1.553161]
[1732132566219,0.41396,93946.0,93938.0,0.053165]
[1732132566220,0.053164,93941.0,93938.0,0.053165]
[1732132566424,0.413961,93946.0,93937.0,0.053165]
[1732132566617,0.3608,93938.0,93937.0,0.053165]
[1732132566820,0.3608,93946.0,93945.0,0.053161]
[1732132567023,0.0332,93957.0,93943.0,0.10182919]
[1732132567223,0.15896583,93962.0,93961.0,0.053152]
[1732132567224,0.053152,93962.0,93961.0,0.053152]
[1732132568817,0.06564447,93962.0,93961.0,0.053152]
[1732132569025,0.09864447,93962.0,93961.0,0.053152]
[1732132569228,0.086152,93962.0,93961.0,0.053152]
[1732132569430,0.09859456,93962.0,93961.0,0.053152]
[1732132570519,0.09862685,93962.0,93961.0,0.053152]
[1732132572722,0.09862539,93962.0,93961.0,0.053152]
[1732132572926,0.086152,93962.0,93961.0,0.053152]
[1732132573328,0.053157,93953.0,93952.0,0.053157]
[1732132574734,0.053157,93953.0,93943.0,0.10182919]
[1732132574930,0.053157,93953.0,93898.0,0.63534733]
[1732132574931,0.3608,93944.0,93933.0,0.00056]
[1732132575236,0.3608,93944.0,93935.0,0.053167]
[1732132575237,0.3608,93936.0,93935.0,0.053167]
[1732132576134,0.3608,93936.0,93932.0,0.00056]
[1732132576135,0.053168,93932.0,93931.0,0.00159676]
[1732132576330,0.82342919,93936.0,93921.0,0.05329386]
[1732132576331,0.053174,93922.0,93921.0,0.05329386]
[1732132576634,0.053174,93922.0,93921.0,0.00011986]
[1732132577231,0.083474,93922.0,93921.0,0.00011986]
[1732132577419,0.115774,93922.0,93921.0,0.00011986]
[1732132577821,0.083474,93922.0,93921.0,0.00011986]
[1732132579431,0.053184,93906.0,93905.0,0.053184]
[1732132579741,0.053184,93906.0,93902.0,0.00159717]
[1732132579742,0.053185,93903.0,93902.0,0.00159717]
[1732132579926,0.053182,93908.0,93902.0,0.02182055]
[1732132580234,0.053182,93908.0,93907.0,0.053182]
[1732132580435,0.05325819,93908.0,93907.0,0.053182]
[1732132581124,7.619e-05,93908.0,93907.0,0.053182]
[1732132585636,7.619e-05,93908.0,93902.0,0.00159717]
[1732132585840,0.10190538,93908.0,93888.0,0.02113952]
[1732132586140,0.413987,93900.0,93899.0,0.053187]
[1732132587129,0.3608,93900.0,93899.0,0.053187]
[1732132589042,7.619e-05,93908.0,93893.0,0.10182919]
[1732132589237,7.619e-05,93908.0,93907.0,0.15501119]
[1732132591744,0.00127633,93909.0,93908.0,0.053182]
[1732132591943,0.36208,93919.0,93918.0,0.053176]
[1732132592134,0.3608,93919.0,93918.0,0.27224519]
[1732132592741,0.36084367,93919.0,93918.0,0.27224519]
[1732132594440,0.41401967,93919.0,93918.0,0.17537645]
[1732132594750,0.053176,93918.0,93917.0,0.1172]
[1732132595052,0.0651766,93918.0,93917.0,0.170377]
[1732132595243,0.0977766,93918.0,93917.0,0.170377]
[1732132595543,0.09778231,93918.0,93917.0,0.170377]
[1732132596041,0.085776,93918.0,93917.0,0.170377]
[1732132597153,0.36212367,93919.0,93918.0,0.053176]
[1732132597354,0.36084367,93919.0,93918.0,0.053176]
[1732132598743,0.36084367,93919.0,93918.0,0.084276]
[1732132599347,4.367e-05,93919.0,93918.0,0.084276]
[1732132600846,0.0321,93948.0,93938.0,0.053165]
[1732132601048,0.0321,93948.0,93938.0,0.10182919]
[1732132601249,0.08526,93948.0,93947.0,0.05316]
[1732132601451,0.14586282,93948.0,93916.0,0.15500619]
[1732132601754,0.3608,93933.0,93917.0,0.1172]
[1732132602045,0.3608,93933.0,93918.0,1.553176]
[1732132602046,0.413976,93919.0,93918.0,1.553176]
[1732132602447,0.3608,93919.0,93918.0,0.053176]
[1732132604154,0.36208,93933.0,93918.0,0.053176]
[1732132604454,0.3608,93933.0,93932.0,0.053168]
[1732132604750,0.39161907,93933.0,93932.0,0.053168]
[1732132604939,0.44478707,93933.0,93932.0,0.053168]
[1732132605143,0.37265349,93933.0,93932.0,0.053168]
[1732132605954,0.42582149,93933.0,93932.0,0.053168]
[1732132606356,0.44490476,93933.0,93932.0,0.053168]
[1732132607545,0.44485776,93933.0,93932.0,0.053168]
[1732132607747,0.42582149,93933.0,93932.0,0.053168]
[1732132607941,0.4448578,93933.0,93932.0,0.053168]
[1732132608145,0.42582149,93933.0,93932.0,0.053168]
[1732132608565,0.37265349,93933.0,93932.0,0.053168]
[1732132611162,0.37265349,93933.0,93928.0,0.05317]
[1732132611354,0.053174,93923.0,93913.0,0.020763]
[1732132611557,0.10182919,93930.0,93913.0,0.053179]
[1732132611558,0.3608,93914.0,93913.0,0.053179]
[1732132612355,0.413978,93914.0,93913.0,0.053179]
[1732132612565,0.7216,93914.0,93906.0,0.02097105]
[1732132612765,0.053182,93907.0,93906.0,0.053183]
[1732132613056,0.7216,93914.0,93901.0,0.053185]
[1732132613057,0.053186,93902.0,93901.0,0.053185]
[1732132613253,0.3608,93902.0,93901.0,0.053185]
[1732132614248,0.413985,93902.0,93901.0,0.053185]
[1732132614656,0.3608,93902.0,93901.0,0.053185]
[1732132620462,0.36216,93914.0,93899.0,0.0219473]
[1732132620463,0.415338,93914.0,93913.0,0.053179]
[1732132620759,0.413978,93914.0,93913.0,0.053179]
[1732132620961,0.053183,93909.0,93908.0,0.053181]
[1732132622451,0.413979,93914.0,93913.0,0.053179]
[1732132622955,0.3608,93914.0,93908.0,0.10182919]
[1732132623156,0.053184,93906.0,93905.0,0.053183]
[1732132623550,0.413984,93906.0,93905.0,0.053183]
[1732132626361,0.413984,93906.0,93899.0,0.0219473]
[1732132626362,0.053186,93900.0,93899.0,0.0219473]
[1732132626954,0.053186,93900.0,93899.0,0.0751343]
[1732132627263,0.10182919,93900.0,93878.0,0.10182919]
[1732132627451,0.10182919,93900.0,93880.0,0.053198]
[1732132627452,0.3608,93881.0,93880.0,0.053198]
[1732132627652,0.3608,93894.0,93878.0,0.10182919]
[1732132627857,0.3608,93894.0,93890.0,0.10182919]
[1732132628161,0.3608,93894.0,93893.0,0.05319]
[1732132628359,0.41399,93894.0,93893.0,0.05319]
[1732132630165,0.3608,93894.0,93893.0,0.05319]
[1732132630465,0.16396583,93916.0,93893.0,0.05319]
[1732132630466,0.3608,93910.0,93909.0,0.053181]
[1732132631655,0.3608,93910.0,93909.0,0.61158421]
[1732132631971,0.3608,93910.0,93909.0,0.19031502]
[1732132632360,0.3608,93910.0,93909.0,1.69031502]
[1732132633066,0.3608,93918.0,93917.0,0.053177]
[1732132633367,0.3608,93918.0,93917.0,0.15500619]
[1732132637065,0.3608,93921.0,93920.0,0.053175]
[1732132637267,0.36208,93929.0,93928.0,0.053171]
[1732132637464,0.3608,93929.0,93928.0,0.053171]
[1732132637960,0.41397,93929.0,93928.0,0.053171]
[1732132642279,0.41397,93929.0,93928.0,0.07422116]
[1732132643076,0.3608,93929.0,93928.0,0.07422116]
[1732132643278,0.36208,93942.0,93938.0,0.053165]
[1732132643579,0.3608,93942.0,93941.0,0.15499219]
[1732132648077,0.3608,93942.0,93941.0,0.053163]
[1732132648273,0.413963,93942.0,93941.0,0.053163]
[1732132648490,0.3608,93942.0,93941.0,0.053163]
[1732132649680,0.3608,93942.0,93941.0,0.15499219]
[1732132652269,0.3608,93950.0,93941.0,0.15499219]
[1732132652466,0.3608,93950.0,93940.0,0.0207956]
[1732132652467,0.3608,93950.0,93949.0,0.10182919]
[1732132653974,0.3608,93950.0,93949.0,0.15498819]
[1732132658982,0.36208,93960.0,93959.0,0.053153]
[1732132659279,0.36208,93960.0,93959.0,0.15498219]
[1732132659280,0.3608,93960.0,93959.0,0.15498219]
[1732132660373,0.0312,93965.0,93959.0,0.15498219]
[1732132660580,0.3608,93963.0,93959.0,0.15498219]
[1732132660780,0.3608,93963.0,93962.0,0.053151]
[1732132661384,0.02049,93968.0,93962.0,1.553151]
[1732132661588,0.00128,93971.0,93970.0,0.053147]
[1732132661976,0.0332,93981.0,93975.0,0.053144]
[1732132662178,0.0332,93981.0,93975.0,0.27165319]
[1732132662481,0.3608,93983.0,93975.0,0.27165319]
[1732132662675,0.41522,93983.0,93981.0,0.053141]
[1732132663282,0.3608,93983.0,93981.0,0.053141]
[1732132663978,0.3608,93983.0,93975.0,0.11668]
[1732132664284,0.41394,93983.0,93982.0,0.05314]
[1732132664671,0.3608,93983.0,93982.0,0.05314]
[1732132665076,0.0332,93990.0,93982.0,0.05314]
[1732132665284,0.0332,93990.0,93989.0,0.15496519]
[1732132666185,0.0332,93990.0,93989.0,0.27164519]
[1732132666381,0.36496186,93991.0,93989.0,0.21850919]
[1732132666582,0.36496186,93991.0,93990.0,0.053135]
[1732132668192,0.36496186,93991.0,93990.0,0.15496419]
[1732132668580,0.36496186,93991.0,93990.0,1.65496419]
[1732132672013,0.37736994,93991.0,93990.0,1.65496419]
[1732132672294,0.37736802,93991.0,93990.0,1.65496419]
[1732132672678,0.01656802,93991.0,93990.0,1.65496419]
[1732132672878,0.00416186,93991.0,93990.0,1.97416419]
[1732132673092,0.00416186,93991.0,93990.0,2.00736419]
[1732132673882,0.00416186,93991.0,93990.0,2.0279864]
[1732132676190,0.00416186,93991.0,93990.0,1.7087864]
[1732132679291,0.00416186,93991.0,93990.0,1.8251464]
[1732132679798,0.01660579,93991.0,93990.0,1.8251464]
[1732132680890,0.01660579,93991.0,93990.0,1.6755864]
[1732132681093,0.00416186,93991.0,93990.0,1.7919464]
[1732132681987,0.01647126,93991.0,93990.0,1.7919464]
[1732132682492,0.00416186,93991.0,93990.0,1.7919464]
[1732132683595,0.01653144,93991.0,93990.0,1.7919464]
[1732132683790,0.00416186,93991.0,93990.0,1.7919464]
[1732132683992,0.00416186,93991.0,93990.0,1.89377559]
[1732132684687,0.00416186,93991.0,93990.0,1.7919464]
[1732132685193,0.01653908,93991.0,93990.0,1.7919464]
[1732132685595,0.01653908,93991.0,93990.0,0.1755864]
[1732132685793,0.01653908,93991.0,93978.0,0.10182919]
[1732132685988,0.3608,93984.0,93979.0,0.11636]
[1732132686296,0.01237722,93983.0,93982.0,1.55314]